Workbook

Sheet INICIO
B2: MAESTRO DE GASTOS DIARIOS PRO
B3: Tu Sistema Inteligente de Control Financiero Personal
B5: ¿Sabías que el 78% de las personas no saben a dónde va su dinero cada mes?
B7: IMAGINA ESTO:
C9: ✦ Abres tu plantilla cada mañana y en 30 segundos registras tus gastos del día.
C10: ✦ Al final de la semana, un panel inteligente te muestra EXACTAMENTE a dónde fue cada peso.
C11: ✦ Al cerrar el mes, generas un informe PDF profesional que te dice si vas bien... o si necesitas ajustar.
C12: ✦ Sin apps costosas. Sin suscripciones. Sin complicaciones. Solo tú y tu Excel.
B14: ¿QUÉ INCLUYE ESTA HERRAMIENTA?
C16: 📝 Diario de Movimientos | F16: Registra cada ingreso y gasto con categorías inteligentes y listas desplegables dependientes.
C19: 📊 Panel de Decisiones | F19: Dashboard en tiempo real con KPIs, gráficos 3D y filtro por periodo (mes o total).
C22: 📄 Reporte PDF | F22: Informe ejecutivo exportable con un solo clic. Perfecto para presentar a tu pareja, socio o contador.
C25: ⚙️ Configuración | F25: Personaliza categorías de gasto y fuentes de ingreso según TU realidad financiera.
C28: ❓ Centro de Ayuda | F28: Guía paso a paso para que domines la herramienta en menos de 5 minutos.
B33: EMPIEZA AHORA → Ve a la hoja 'DIARIO DE MOVIMIENTOS' y registra tu primer gasto
B35: Versión 1.0 | Diseñado para quienes quieren tomar el control de su dinero | No requiere conocimientos avanzados

Sheet CONFIGURACION
A1: Categorías de Gasto | B1: Fuentes de Ingreso | C1: Tipos
A2: Alimentación | B2: Salario | C2: Gasto
A3: Transporte | B3: Freelance | C3: Ingreso
A4: Ocio | B4: Inversiones
A5: Servicios
A6: Alquiler
A7: Salud
A8: Educación
A9: Ropa

Sheet DIARIO DE MOVIMIENTOS
A1: Fecha | B1: Categoría | C1: Descripción | D1: Tipo | E1: Valor | F1: Mes
A2: 2026-02-03 | B2: Servicios | C2: Internet Claro | D2: Gasto | E2: 7000 | F2: =TEXT(A2,"mmmm") -> febrero
A3: 2026-02-04 | B3: Alquiler | C3: Arriendo apto | D3: Gasto | E3: 20000 | F3: =TEXT(A3,"mmmm") -> febrero
A4: 2026-02-05 | B4: Transporte | C4: Uber al trabajo | D4: Gasto | E4: 231000 | F4: febrero
A5: 2026-02-05 | B5: Educación | C5: Curso Udemy | D5: Gasto | E5: 106000 | F5: febrero
A6: 2026-02-06 | B6: Ropa | C6: Camiseta Zara | D6: Gasto | E6: 232000 | F6: febrero
A7: 2026-02-07 | B7: Ropa | C7: Camiseta Zara | D7: Gasto | E7: 116000 | F7: febrero
A8: 2026-02-09 | B8: Transporte | C8: Peaje | D8: Gasto | E8: 217000 | F8: febrero
A9: 2026-02-13 | B9: Freelance | C9: Consultoría | D9: Ingreso | E9: 1500000 | F9: febrero
A10: 2026-02-17 | B10: Alquiler | C10: Arriendo apto | D10: Gasto | E10: 45000 | F10: febrero
A11: 2026-02-19 | B11: Transporte | C11: Peaje | D11: Gasto | E11: 219000 | F11: febrero
A12: 2026-02-19 | B12: Ocio | C12: Netflix mensual | D12: Gasto | E12: 138000 | F12: febrero
A13: 2026-02-19 | B13: Alimentación | C13: Supermercado Éxito | D13: Gasto | E13: 115000 | F13: febrero
A14: 2026-02-23 | B14: Servicios | C14: Factura luz | D14: Gasto | E14: 242000 | F14: febrero
A15: 2026-02-24 | B15: Inversiones | C15: Dividendos | D15: Ingreso | E15: 350000 | F15: febrero
A16: 2026-02-25 | B16: Ocio | C16: Cine con amigos | D16: Gasto | E16: 178000 | F16: febrero
A17: 2026-02-26 | B17: Alquiler | C17: Arriendo apto | D17: Gasto | E17: 60000 | F17: febrero
A18: 2026-02-28 | B18: Freelance | C18: Consultoría | D18: Ingreso | E18: 500000 | F18: febrero
A19: 2026-02-28 | B19: Servicios | C19: Plan celular | D19: Gasto | E19: 180000 | F19: febrero
A20: 2026-02-28 | B20: Transporte | C20: Gasolina carro | D20: Gasto | E20: 111000 | F20: febrero
A21: 2026-03-02 | B21: Salario | C21: Nómina quincenal | D21: Ingreso | E21: 350000 | F21: marzo
A22: 2026-03-02 | B22: Alimentación | C22: Frutas plaza | D22: Gasto | E22: 75000 | F22: marzo
A23: 2026-03-06 | B23: Servicios | C23: Plan celular | D23: Gasto | E23: 189000 | F23: marzo
A24: 2026-03-07 | B24: Ropa | C24: Camiseta Zara | D24: Gasto | E24: 211000 | F24: marzo
A25: 2026-03-07 | B25: Alimentación | C25: Domicilio Rappi | D25: Gasto | E25: 20000 | F25: marzo
A26: 2026-03-10 | B26: Ropa | C26: Camiseta Zara | D26: Gasto | E26: 55000 | F26: marzo
A27: 2026-03-11 | B27: Servicios | C27: Plan celular | D27: Gasto | E27: 32000 | F27: marzo
A28: 2026-03-12 | B28: Ropa | C28: Camiseta Zara | D28: Gasto | E28: 182000 | F28: marzo
A29: 2026-03-14 | B29: Alimentación | C29: Domicilio Rappi | D29: Gasto | E29: 136000 | F29: marzo
A30: 2026-03-18 | B30: Educación | C30: Curso Udemy | D30: Gasto | E30: 249000 | F30: marzo
A31: 2026-03-20 | B31: Alquiler | C31: Arriendo apto | D31: Gasto | E31: 183000 | F31: marzo
A32: 2026-03-25 | B32: Alimentación | C32: Domicilio Rappi | D32: Gasto | E32: 133000 | F32: marzo
A33: 2026-03-26 | B33: Transporte | C33: Uber al trabajo | D33: Gasto | E33: 178000 | F33: marzo
A34: 2026-03-27 | B34: Salud | C34: Gimnasio | D34: Gasto | E34: 55000 | F34: marzo
A35: 2026-04-01 | B35: Educación | C35: Curso Udemy | D35: Gasto | E35: 123000 | F35: abril
A36: 2026-04-03 | B36: Salario | C36: Nómina mensual | D36: Ingreso | E36: 1500000 | F36: abril
A37: 2026-04-04 | B37: Freelance | C37: Proyecto diseño web | D37: Ingreso | E37: 2000000 | F37: abril
A38: 2026-04-04 | B38: Alquiler | C38: Cuota admin | D38: Gasto | E38: 34000 | F38: abril
A39: 2026-04-04 | B39: Inversiones | C39: Dividendos | D39: Ingreso | E39: 1500000 | F39: abril
A40: 2026-04-08 | B40: Educación | C40: Libros | D40: Gasto | E40: 248000 | F40: abril
A41: 2026-04-09 | B41: Alimentación | C41: Almuerzo restaurante | D41: Gasto | E41: 188000 | F41: abril
A42: 2026-04-15 | B42: Educación | C42: Curso Udemy | D42: Gasto | E42: 150000 | F42: abril
A43: 2026-04-15 | B43: Salario | C43: Nómina quincenal | D43: Ingreso | E43: 500000 | F43: abril
A44: 2026-04-18 | B44: Educación | C44: Libros | D44: Gasto | E44: 100000 | F44: abril
A45: 2026-04-19 | B45: Salud | C45: Consulta médica | D45: Gasto | E45: 59000 | F45: abril
A46: 2026-04-21 | B46: Inversiones | C46: Dividendos | D46: Ingreso | E46: 350000 | F46: abril
A47: 2026-04-21 | B47: Ropa | C47: Camiseta Zara | D47: Gasto | E47: 70000 | F47: abril
A48: 2026-04-21 | B48: Freelance | C48: Consultoría | D48: Ingreso | E48: 1500000 | F48: abril
A49: 2026-04-23 | B49: Salud | C49: Farmacia | D49: Gasto | E49: 65000 | F49: abril
A50: 2026-04-23 | B50: Ropa | C50: Zapatos Nike | D50: Gasto | E50: 237000 | F50: abril
A51: 2026-04-25 | B51: Servicios | C51: Plan celular | D51: Gasto | E51: 110000 | F51: abril

Sheet PANEL DE DECISIONES
B1: PANEL DE DECISIONES FINANCIERAS
B3: Seleccione Periodo: | C3: Todos | H3: =IF(C3="Todos",0,IF(C3="Mes Actual",MONTH(TODAY()),IF(C3="Febrero",2,IF(C3="Marzo",3,IF(C3="Abril",4,0))))) -> 0
B5: GASTOS TOTALES | C5: =IF($H$3=0,SUMIFS('DIARIO DE MOVIMIENTOS'!$E$2:$E$51,'DIARIO DE MOVIMIENTOS'!$D$2:$D$51,"Gasto"),SUMIFS('DIARIO DE MOVIMIENTOS'!$E$2:$E$51,'DIARIO DE MOVIMIENTOS'!$D$2:$D$51,"Gasto",'DIARIO DE MOVIMIENTOS'!$F$2:$F$51,$H$3)) -> 5299000
B6: INGRESOS TOTALES | C6: =IF($H$3=0,SUMIFS('DIARIO DE MOVIMIENTOS'!$E$2:$E$51,'DIARIO DE MOVIMIENTOS'!$D$2:$D$51,"Ingreso"),SUMIFS('DIARIO DE MOVIMIENTOS'!$E$2:$E$51,'DIARIO DE MOVIMIENTOS'!$D$2:$D$51,"Ingreso",'DIARIO DE MOVIMIENTOS'!$F$2:$F$51,$H$3)) -> 10050000
B7: BALANCE NETO | C7: =C6-C5 -> 4751000
B9: DESGLOSE POR CATEGORÍA | C9: Monto | D9: % Total
B10: =CONFIGURACION!A2 -> Alimentación | C10: =IF($H$3=0,SUMIFS('DIARIO DE MOVIMIENTOS'!$E$2:$E$51,'DIARIO DE MOVIMIENTOS'!$D$2:$D$51,"Gasto",'DIARIO DE MOVIMIENTOS'!$B$2:$B$51,B10),SUMIFS('DIARIO DE MOVIMIENTOS'!$E$2:$E$51,'DIARIO DE MOVIMIENTOS'!$D$2:$D$51,"Gasto",'DIARIO DE MOVIMIENTOS'!$F$2:$F$51,$H$3,'DIARIO DE MOVIMIENTOS'!$B$2:$B$51,B10)) -> 667000 | D10: =IFERROR(C10/C5,0) -> 0.1258728062
B11: =CONFIGURACION!A3 -> Transporte | C11: =IF($H$3=0,SUMIFS('DIARIO DE MOVIMIENTOS'!$E$2:$E$51,'DIARIO DE MOVIMIENTOS'!$D$2:$D$51,"Gasto",'DIARIO DE MOVIMIENTOS'!$B$2:$B$51,B11),SUMIFS('DIARIO DE MOVIMIENTOS'!$E$2:$E$51,'DIARIO DE MOVIMIENTOS'!$D$2:$D$51,"Gasto",'DIARIO DE MOVIMIENTOS'!$F$2:$F$51,$H$3,'DIARIO DE MOVIMIENTOS'!$B$2:$B$51,B11)) -> 956000 | D11: =IFERROR(C11/C5,0) -> 0.1804113984
B12: =CONFIGURACION!A4 -> Ocio | C12: =IF($H$3=0,SUMIFS('DIARIO DE MOVIMIENTOS'!$E$2:$E$51,'DIARIO DE MOVIMIENTOS'!$D$2:$D$51,"Gasto",'DIARIO DE MOVIMIENTOS'!$B$2:$B$51,B12),SUMIFS('DIARIO DE MOVIMIENTOS'!$E$2:$E$51,'DIARIO DE MOVIMIENTOS'!$D$2:$D$51,"Gasto",'DIARIO DE MOVIMIENTOS'!$F$2:$F$51,$H$3,'DIARIO DE MOVIMIENTOS'!$B$2:$B$51,B12)) -> 316000 | D12: =IFERROR(C12/C5,0) -> 0.05963389319
B13: =CONFIGURACION!A5 -> Servicios | C13: =IF($H$3=0,SUMIFS('DIARIO DE MOVIMIENTOS'!$E$2:$E$51,'DIARIO DE MOVIMIENTOS'!$D$2:$D$51,"Gasto",'DIARIO DE MOVIMIENTOS'!$B$2:$B$51,B13),SUMIFS('DIARIO DE MOVIMIENTOS'!$E$2:$E$51,'DIARIO DE MOVIMIENTOS'!$D$2:$D$51,"Gasto",'DIARIO DE MOVIMIENTOS'!$F$2:$F$51,$H$3,'DIARIO DE MOVIMIENTOS'!$B$2:$B$51,B13)) -> 760000 | D13: =IFERROR(C13/C5,0) -> 0.1434232874
B14: =CONFIGURACION!A6 -> Alquiler | C14: =IF($H$3=0,SUMIFS('DIARIO DE MOVIMIENTOS'!$E$2:$E$51,'DIARIO DE MOVIMIENTOS'!$D$2:$D$51,"Gasto",'DIARIO DE MOVIMIENTOS'!$B$2:$B$51,B14),SUMIFS('DIARIO DE MOVIMIENTOS'!$E$2:$E$51,'DIARIO DE MOVIMIENTOS'!$D$2:$D$51,"Gasto",'DIARIO DE MOVIMIENTOS'!$F$2:$F$51,$H$3,'DIARIO DE MOVIMIENTOS'!$B$2:$B$51,B14)) -> 342000 | D14: =IFERROR(C14/C5,0) -> 0.06454047934
B15: =CONFIGURACION!A7 -> Salud | C15: =IF($H$3=0,SUMIFS('DIARIO DE MOVIMIENTOS'!$E$2:$E$51,'DIARIO DE MOVIMIENTOS'!$D$2:$D$51,"Gasto",'DIARIO DE MOVIMIENTOS'!$B$2:$B$51,B15),SUMIFS('DIARIO DE MOVIMIENTOS'!$E$2:$E$51,'DIARIO DE MOVIMIENTOS'!$D$2:$D$51,"Gasto",'DIARIO DE MOVIMIENTOS'!$F$2:$F$51,$H$3,'DIARIO DE MOVIMIENTOS'!$B$2:$B$51,B15)) -> 179000 | D15: =IFERROR(C15/C5,0) -> 0.03377995848
B16: =CONFIGURACION!A8 -> Educación | C16: =IF($H$3=0,SUMIFS('DIARIO DE MOVIMIENTOS'!$E$2:$E$51,'DIARIO DE MOVIMIENTOS'!$D$2:$D$51,"Gasto",'DIARIO DE MOVIMIENTOS'!$B$2:$B$51,B16),SUMIFS('DIARIO DE MOVIMIENTOS'!$E$2:$E$51,'DIARIO DE MOVIMIENTOS'!$D$2:$D$51,"Gasto",'DIARIO DE MOVIMIENTOS'!$F$2:$F$51,$H$3,'DIARIO DE MOVIMIENTOS'!$B$2:$B$51,B16)) -> 976000 | D16: =IFERROR(C16/C5,0) -> 0.1841856954
B17: =CONFIGURACION!A9 -> Ropa | C17: =IF($H$3=0,SUMIFS('DIARIO DE MOVIMIENTOS'!$E$2:$E$51,'DIARIO DE MOVIMIENTOS'!$D$2:$D$51,"Gasto",'DIARIO DE MOVIMIENTOS'!$B$2:$B$51,B17),SUMIFS('DIARIO DE MOVIMIENTOS'!$E$2:$E$51,'DIARIO DE MOVIMIENTOS'!$D$2:$D$51,"Gasto",'DIARIO DE MOVIMIENTOS'!$F$2:$F$51,$H$3,'DIARIO DE MOVIMIENTOS'!$B$2:$B$51,B17)) -> 1103000 | D17: =IFERROR(C17/C5,0) -> 0.2081524816
B19: DESGLOSE DE INGRESOS | C19: Monto
B20: =CONFIGURACION!B2 -> Salario | C20: =IF($H$3=0,SUMIFS('DIARIO DE MOVIMIENTOS'!$E$2:$E$51,'DIARIO DE MOVIMIENTOS'!$D$2:$D$51,"Ingreso",'DIARIO DE MOVIMIENTOS'!$B$2:$B$51,B20),SUMIFS('DIARIO DE MOVIMIENTOS'!$E$2:$E$51,'DIARIO DE MOVIMIENTOS'!$D$2:$D$51,"Ingreso",'DIARIO DE MOVIMIENTOS'!$F$2:$F$51,$H$3,'DIARIO DE MOVIMIENTOS'!$B$2:$B$51,B20)) -> 2350000
B21: =CONFIGURACION!B3 -> Freelance | C21: =IF($H$3=0,SUMIFS('DIARIO DE MOVIMIENTOS'!$E$2:$E$51,'DIARIO DE MOVIMIENTOS'!$D$2:$D$51,"Ingreso",'DIARIO DE MOVIMIENTOS'!$B$2:$B$51,B21),SUMIFS('DIARIO DE MOVIMIENTOS'!$E$2:$E$51,'DIARIO DE MOVIMIENTOS'!$D$2:$D$51,"Ingreso",'DIARIO DE MOVIMIENTOS'!$F$2:$F$51,$H$3,'DIARIO DE MOVIMIENTOS'!$B$2:$B$51,B21)) -> 5500000
B22: =CONFIGURACION!B4 -> Inversiones | C22: =IF($H$3=0,SUMIFS('DIARIO DE MOVIMIENTOS'!$E$2:$E$51,'DIARIO DE MOVIMIENTOS'!$D$2:$D$51,"Ingreso",'DIARIO DE MOVIMIENTOS'!$B$2:$B$51,B22),SUMIFS('DIARIO DE MOVIMIENTOS'!$E$2:$E$51,'DIARIO DE MOVIMIENTOS'!$D$2:$D$51,"Ingreso",'DIARIO DE MOVIMIENTOS'!$F$2:$F$51,$H$3,'DIARIO DE MOVIMIENTOS'!$B$2:$B$51,B22)) -> 2200000

Sheet REPORTE PDF
A1: INFORME FINANCIERO DINÁMICO
A2: ="Periodo: "&'PANEL DE DECISIONES'!C3 -> Periodo: Todos
A3: Generado automáticamente
B5: RESUMEN EJECUTIVO
B7: Total Gastos | D7: ='PANEL DE DECISIONES'!C5 -> 5299000
B9: Total Ingresos | D9: ='PANEL DE DECISIONES'!C6 -> 10050000
B11: Balance Neto | D11: ='PANEL DE DECISIONES'!C7 -> 4751000
B14: DETALLE POR CATEGORÍA
B15: Categoría | C15: Monto | D15: % Participación
B16: =CONFIGURACION!A2 -> Alimentación | C16: ='PANEL DE DECISIONES'!C10 -> 667000 | D16: ='PANEL DE DECISIONES'!D10 -> 0.1258728062
B17: =CONFIGURACION!A3 -> Transporte | C17: ='PANEL DE DECISIONES'!C11 -> 956000 | D17: ='PANEL DE DECISIONES'!D11 -> 0.1804113984
B18: =CONFIGURACION!A4 -> Ocio | C18: ='PANEL DE DECISIONES'!C12 -> 316000 | D18: ='PANEL DE DECISIONES'!D12 -> 0.05963389319
B19: =CONFIGURACION!A5 -> Servicios | C19: ='PANEL DE DECISIONES'!C13 -> 760000 | D19: ='PANEL DE DECISIONES'!D13 -> 0.1434232874
B20: =CONFIGURACION!A6 -> Alquiler | C20: ='PANEL DE DECISIONES'!C14 -> 342000 | D20: ='PANEL DE DECISIONES'!D14 -> 0.06454047934
B21: =CONFIGURACION!A7 -> Salud | C21: ='PANEL DE DECISIONES'!C15 -> 179000 | D21: ='PANEL DE DECISIONES'!D15 -> 0.03377995848
B22: =CONFIGURACION!A8 -> Educación | C22: ='PANEL DE DECISIONES'!C16 -> 976000 | D22: ='PANEL DE DECISIONES'!D16 -> 0.1841856954
B23: =CONFIGURACION!A9 -> Ropa | C23: ='PANEL DE DECISIONES'!C17 -> 1103000 | D23: ='PANEL DE DECISIONES'!D17 -> 0.2081524816
B25: FUENTES DE INGRESO
B26: Fuente | C26: Monto
B27: =CONFIGURACION!B2 -> Salario | C27: ='PANEL DE DECISIONES'!C20 -> 2350000
B28: =CONFIGURACION!B3 -> Freelance | C28: ='PANEL DE DECISIONES'!C21 -> 5500000
B29: =CONFIGURACION!B4 -> Inversiones | C29: ='PANEL DE DECISIONES'!C22 -> 2200000
C66: Asigne la macro: ExportarReportePDF

Sheet AYUDA
B1: CENTRO DE AYUDA — GUÍA RÁPIDA
B2: Domina tu Maestro de Gastos en 5 minutos
B4: PASO 1: Configura tus categorías
B5: Ve a la hoja CONFIGURACION. Ahí encontrarás las categorías de gasto (Alimentación, Transporte, etc.) y las fuentes de ingreso (Salario, Freelance, etc.). Puedes modificarlas según tu realidad. Estas listas alimentan automáticamente los desplegables del Diario.
B12: PASO 2: Registra tus movimientos diarios
B13: En la hoja DIARIO DE MOVIMIENTOS, registra cada transacción: • Fecha: Día del movimiento • Tipo: Selecciona 'Gasto' o 'Ingreso' del desplegable • Categoría: Se actualiza automáticamente según el Tipo seleccionado • Descripción: Detalle libre del movimiento • Valor: Monto en pesos (sin signos, solo números)
B20: PASO 3: Analiza tu situación en el Panel
B21: La hoja PANEL DE DECISIONES se actualiza en tiempo real: • Selecciona el periodo en el desplegable (Todos, Febrero, Marzo, Abril) • Los KPIs muestran Gastos Totales, Ingresos Totales y Balance • Los gráficos 3D se actualizan automáticamente • El desglose por categoría te muestra dónde se va tu dinero
B28: PASO 4: Genera tu informe PDF
B29: La hoja REPORTE PDF contiene un informe ejecutivo que se actualiza según el periodo seleccionado. Para exportar a PDF: 1. Guarda el archivo como .xlsm (habilitado para macros) 2. Presiona Alt+F11 → Insertar → Módulo 3. Pega el código VBA proporcionado 4. Asigna la macro al botón 'EXPORTAR INFORME A PDF' 5. ¡Listo! Un clic y tienes tu informe en el escritorio
B37: GLOSARIO DE TÉRMINOS
B38: Término | E38: Definición
B39: Gasto | C39: Cualquier salida de dinero: compras, servicios, arriendo, entretenimiento, etc.
B40: Ingreso | C40: Cualquier entrada de dinero: salario, freelance, dividendos, ventas, etc.
B41: Balance | C41: Diferencia entre Ingresos y Gastos. Positivo = ahorraste. Negativo = gastaste de más.
B42: KPI | C42: Indicador Clave de Rendimiento. Métricas resumidas de tu salud financiera.
B43: SUMIFS | C43: Fórmula de Excel que suma valores según múltiples criterios (tipo, categoría, mes).
B44: Periodo | C44: Filtro temporal que permite analizar un mes específico o el total acumulado.
B45: Categoría | C45: Agrupación del tipo de gasto o ingreso para facilitar el análisis.
